bitfinex/quotes_SOLUSD_20240607
["timestamp","ask_amount","ask_price","bid_price","bid_amount"]
[1717783374768,6.8513,162.02,161.57,11.4498]
[1717783374769,2.2861,161.85,161.58,24.5797]
[1717783375075,5.17519004,161.79,161.6,16.5451]
[1717783375371,30.58684345,162.29,161.61,26.13952341]
[1717783375677,2.70369004,162.04,161.61,50.0]
[1717783375859,4.88475604,162.51,161.69,6.5509]
[1717783375860,2.6192297,162.13,161.69,6.5509]
[1717783376055,0.3370297,162.13,161.73,10.0]
[1717783376273,0.3370297,162.13,161.74,20.0]
[1717783376462,13.04385634,162.12,161.74,50.0]
[1717783376773,0.3370297,162.13,161.75,6.5509]
[1717783376973,0.3370297,162.13,161.94,10.0]
[1717783377180,0.3370297,162.13,161.76,20.0]
[1717783377181,0.3370297,162.13,161.95,20.0]
[1717783377351,0.3370297,162.13,161.98,21.6866]
[1717783377678,2.2781,162.42,161.99,20.0]
[1717783377970,17.09719004,162.32,161.99,20.0]
[1717783378148,0.3370297,162.46,162.06,9.09289074]
[1717783378585,0.3370297,162.46,162.07,20.0]
[1717783378873,0.3370297,162.46,162.1,120.0]
[1717783379072,0.3370297,162.46,162.11,20.0]
[1717783379575,0.3370297,162.46,162.14,120.0]
[1717783379876,0.3370297,162.46,162.08,10.00330873]
[1717783379877,0.3370297,162.46,162.17,9.09289074]
[1717783380083,0.3370297,162.46,162.18,20.0]
[1717783380390,2.2777,162.45,162.18,20.0]
[1717783380671,0.90710926,162.43,162.18,20.0]
[1717783380974,0.90710926,162.43,162.09,9.09289074]
[1717783381150,0.90710926,162.35,162.09,9.09289074]
[1717783381350,0.90710926,162.43,162.09,9.09289074]
[1717783381663,0.90710926,162.43,162.08,0.91041799]
[1717783381866,0.3370297,162.46,162.08,0.91041799]
[1717783382258,0.3370297,162.46,162.11,18.57]
[1717783382448,0.3370297,162.46,162.15,39.69]
[1717783382846,0.3370297,162.46,162.16,20.0]
[1717783383251,0.3370297,162.46,162.17,18.57]
[1717783383570,0.3370297,162.46,162.24,39.69]
[1717783383764,0.3370297,162.46,162.25,20.0]
[1717783384477,0.29877783,162.46,162.25,20.0]
[1717783384778,2.278,162.42,162.26,2.464472]
[1717783384963,0.90710926,162.43,162.26,2.464472]
[1717783385162,2.2785,162.39,162.05,39.69]
[1717783385454,0.90710926,162.32,161.98,21.6866]
[1717783385680,0.90710926,162.39,162.09,2.466851]
[1717783385889,0.90710926,162.32,162.09,2.466851]
[1717783386067,120.0,162.4,162.1,39.69]
[1717783386256,0.90710926,162.43,162.11,9.09289074]
[1717783386456,0.90710926,162.43,162.09,2.466851]
[1717783386457,0.29877783,162.46,162.2,39.69]
[1717783386652,0.29877783,162.46,162.21,6.339]
[1717783386850,0.29877783,162.46,162.23,9.09289074]
[1717783387076,0.29877783,162.46,162.29,39.69]
[1717783387870,2.19219996,162.62,162.29,39.69]
[1717783388065,120.0,162.72,162.39,39.69]
[1717783388260,24.61849,162.78,162.39,39.69]
[1717783388597,30.67824854,162.93,162.49,39.69]
[1717783388777,120.0,162.95,162.6,39.69]
[1717783389085,2.2698,163.01,162.6,39.69]
[1717783389264,6.5095,163.08,162.61,20.0]
[1717783389657,2.2693,163.05,162.61,20.0]
[1717783389873,6.5095,163.08,162.61,20.0]
[1717783390171,6.5095,163.08,162.62,1.42248986]
[1717783390378,10.3370297,163.13,162.63,120.0]
[1717783390569,12.6052297,163.13,162.7,6.4929]
[1717783390768,42.0,163.03,162.71,20.0]
[1717783390969,0.3370297,163.13,162.79,39.69]
[1717783391273,0.3370297,163.13,162.8,20.0]
[1717783391464,0.3370297,163.13,162.82,10.0]
[1717783391668,0.3370297,163.13,162.84,10.0]
[1717783391888,0.3370297,163.13,162.86,10.0]
[1717783392092,0.3370297,163.13,162.87,20.0]
[1717783392497,0.3370297,163.13,162.91,10.0]
[1717783392706,0.3370297,163.13,162.92,20.0]
[1717783393174,0.3370297,163.13,162.96,10.0]
[1717783393493,0.3370297,163.13,162.88,1.42021918]
[1717783393801,0.3370297,163.13,162.54,30.08177497]
[1717783393802,0.3370297,163.13,162.7,56.1829]
[1717783393981,52.3370297,163.13,162.72,120.0]
[1717783394316,0.3370297,163.13,162.8,39.69]
[1717783394601,0.3370297,163.13,162.76,120.0]
[1717783394602,0.3370297,163.13,162.89,39.69]
[1717783394975,0.3370297,163.13,162.97,10.0]
[1717783395373,0.3370297,163.13,162.98,20.0]
[1717783395897,0.3370297,163.13,162.89,39.69]
[1717783396572,0.3370297,163.13,162.9,7.29812752]
[1717783396772,0.3370297,163.13,163.01,10.0]
[1717783397191,0.3370297,163.13,162.89,39.69]
[1717783397394,0.3370297,163.13,162.84,39.69]
[1717783397395,0.3370297,163.13,162.84,169.69]
[1717783397576,1.6254556,163.19,162.98,6.546]
[1717783397777,1.6254556,163.19,163.07,39.69]
[1717783398071,1.6254556,163.19,163.09,120.0]
[1717783398381,1.6254556,163.19,163.07,39.69]
[1717783398382,17.975,163.5,163.1,8.20076086]
[1717783398588,15.712,163.5,163.11,20.0]
[1717783398786,15.712,163.5,163.12,8.20076086]
[1717783399083,15.712,163.5,163.13,20.0]
[1717783399298,15.712,163.5,163.14,7.86046123]
[1717783399603,15.712,163.5,163.11,7.19156674]
[1717783399814,15.712,163.5,163.12,7.19156674]
[1717783399978,15.712,163.5,163.06,10.0]
[1717783399979,4.5273,163.45,163.06,10.0]
[1717783400173,120.0,163.43,162.98,6.546]
[1717783400372,9.0601,163.36,162.98,6.546]
[1717783400590,4.531,163.32,162.99,10.0]
[1717783400875,4.531,163.32,162.98,6.546]
[1717783401076,19.0578,163.4,162.98,6.546]
[1717783401283,31.01867718,163.46,163.01,135.3863]
[1717783401496,0.3370297,163.46,163.1,39.69]
[1717783402015,0.3370297,163.46,163.11,1.41821654]
[1717783402989,9.0548,163.45,163.11,1.41821654]
[1717783403312,2.2656,163.31,162.99,10.0]
[1717783403489,9.0653,163.26,163.12,10.33703]
[1717783403685,2.2677,163.16,163.12,10.33703]
[1717783403994,4.5332,163.24,162.87,16.0252]
[1717783404200,20.0,163.26,162.88,25.96338918]
[1717783404383,2.2669,163.22,162.89,39.69]
[1717783404589,120.0,163.43,162.98,39.69]
[1717783404798,120.3370297,163.46,162.98,39.69]
[1717783404997,9.0593,163.37,162.98,39.69]
[1717783405200,120.0,163.35,162.91,10.0]
[1717783405500,2.268,163.14,162.89,39.69]
[1717783405702,4.5341,163.21,162.88,25.96338918]
[1717783406016,2.266,163.29,162.9,39.69]
[1717783406506,6.2869,163.31,162.9,39.69]
[1717783406809,20.3935,163.29,162.94,49.69]
[1717783406980,4.5311,163.32,162.94,49.69]
[1717783407180,2.2657,163.3,162.97,10.0]
[1717783407404,2.2653,163.34,163.03,39.69]
[1717783407607,120.0,163.37,163.03,39.69]
[1717783407906,2.2661,163.28,163.0,7.25275227]
[1717783408091,2.2665,163.25,162.95,1.41960908]
[1717783408295,6.7972,163.31,162.95,1.41960908]
[1717783408296,6.7979,163.29,162.96,9.96167087]
[1717783408600,16.6117,163.41,162.97,20.0]
[1717783408601,2.2675,163.18,162.97,20.0]
[1717783408908,9.0693,163.19,162.95,1.41960908]
[1717783409091,20.0,163.18,162.95,1.41960908]
[1717783409295,4.5352,163.17,162.92,24.54317]
[1717783409494,9.0704,163.17,162.92,24.54317]
[1717783409696,20.0,163.16,162.71,15.9644]
[1717783410025,120.0,163.11,162.79,24.564732]
[1717783410322,2.2711,162.92,162.57,62.0251]
[1717783410611,6.3949,162.94,162.58,1.42283984]
[1717783410822,4.5428,162.9,162.58,1.42283984]
[1717783410988,9.0847,162.92,162.58,1.42283984]
[1717783411193,4.5431,162.89,162.6,39.69]
[1717783411487,2.2715,162.89,162.57,55.6544]
[1717783411701,30.05614663,163.03,162.67,39.69]
[1717783412017,2.2712,162.91,162.67,39.69]
[1717783412192,30.75055391,163.0,162.67,39.65155466]
[1717783412387,2.2709,162.93,162.67,39.65155466]
[1717783412621,4.5403,162.99,162.68,20.0]
[1717783412797,4.5404,162.98,162.67,39.65155466]
[1717783412994,2.2707,162.95,162.67,39.65155466]
[1717783413298,8.59094004,163.04,162.68,31.21488314]
[1717783413498,30.36964948,163.11,162.8,16.2735]
[1717783413697,29.04244004,163.23,162.81,18.57]
[1717783413899,120.0,163.25,162.88,39.69]
[1717783414108,16.4995,163.32,162.89,6.92566938]
[1717783414397,22.18419004,163.26,162.92,9.96167087]
[1717783414602,8.58219004,163.32,163.04,9.96167087]
[1717783414795,0.60544004,163.33,163.05,20.73644598]
[1717783415002,0.60544004,163.33,163.11,9.96167087]
[1717783415208,26.22294004,163.35,163.12,0.73612994]
[1717783415420,26.22294004,163.35,162.99,0.81991771]
[1717783415630,146.22294004,163.35,162.99,0.81875452]
[1717783416009,9.29194004,163.39,163.02,9.96167087]
[1717783416195,9.29194004,163.39,163.05,18.57]
[1717783416528,8.74669004,163.44,163.06,39.38890363]
[1717783417012,10.0,163.48,163.09,18.57]
[1717783417218,2.2649,163.37,163.1,0.34508]
[1717783417418,36.22319004,163.45,163.05,58.26]
[1717783417596,25.37044004,163.48,163.05,58.26]
[1717783417912,25.37044004,163.48,163.15,21.51275615]
[1717783418124,25.37044004,163.48,163.15,9.00355615]
[1717783418423,25.37044004,163.48,163.23,2.94275615]
[1717783418613,1.6254556,163.51,163.23,2.94275615]
[1717783418915,2.2632,163.49,163.23,2.94275615]
[1717783419226,2.2635,163.47,163.25,2.94275615]
[1717783419522,2.2639,163.43,163.25,2.94275615]
[1717783419705,120.0,163.4,163.25,2.94275615]
[1717783419904,1.22733278,163.4,163.15,2.94275615]
[1717783420103,9.0531,163.48,163.15,2.94275615]
[1717783420298,120.0,163.49,163.15,2.94275615]
[1717783421119,0.03817537,163.4,163.17,2.94275615]
[1717783421315,0.03817537,163.4,163.19,2.94275615]
[1717783421526,0.03817537,163.4,163.2,1.13150359]
[1717783421817,0.03817537,163.4,163.16,2.94275615]
[1717783422025,0.03817537,163.4,163.21,2.94275615]
[1717783422207,0.03817537,163.4,163.23,2.94275615]
[1717783422412,0.03817537,163.4,163.13,21.22514872]
[1717783422413,2.2645,163.39,163.19,2.94275615]
[1717783422607,0.03817537,163.4,163.21,2.94275615]
[1717783423217,0.03817537,163.4,163.23,2.94275615]
[1717783423422,0.03817537,163.4,163.23,21.51275615]
[1717783423601,0.03817537,163.4,163.23,2.94275615]
[1717783423806,0.03817537,163.4,163.39,2.94275615]
[1717783424512,1.6254556,163.51,163.39,2.94275615]
[1717783426009,2.2631,163.49,163.39,2.94275615]
[1717783426244,2.2635,163.47,163.35,2.94275615]
[1717783426511,1.6254556,163.51,163.22,2.449823]
[1717783426512,7.05724385,163.49,163.22,2.449823]
[1717783426814,20.0,163.48,163.22,2.449823]
[1717783427132,2.2639,163.44,163.22,5.39257915]
[1717783427335,20.0,163.47,163.22,2.94275615]
[1717783427630,127.05724385,163.36,163.22,2.94275615]
[1717783427807,20.0,163.35,163.22,2.94275615]
[1717783428010,20.0,163.35,163.05,16.0577]
[1717783428011,120.0,163.34,163.1,2.94275615]
[1717783428215,120.0,163.32,163.05,6.0577]
[1717783428436,20.0,163.33,163.08,2.94275615]
[1717783428708,9.062,163.32,163.05,6.0577]
[1717783428905,4.5326,163.26,163.05,6.0577]
[1717783429108,2.2677,163.16,163.02,2.94275615]
[1717783429313,2.268,163.14,162.97,2.94275615]
[1717783429540,4.5343,163.2,163.02,2.94275615]
[1717783429737,12.82208651,163.25,163.01,2.94275615]
[1717783429927,1.22733278,163.26,163.01,2.94275615]
[1717783430110,21.7654,163.33,163.06,2.94275615]
[1717783430314,7.05724385,163.38,163.06,23.1119]
[1717783430509,120.0,163.46,163.11,2.94275615]
[1717783430732,2.2641,163.42,163.14,39.69]
[1717783430932,37.77368124,163.48,163.2,2.94275615]
[1717783430933,2.2638,163.45,163.2,2.94275615]
[1717783431239,32.71094004,163.43,163.19,2.94275615]
[1717783431534,39.79894004,163.45,163.22,2.94275615]
[1717783432115,2.2645,163.39,163.22,2.94275615]
[1717783432436,1.6254556,163.51,163.22,2.94275615]
[1717783432636,2.75594004,163.5,163.19,20.0]
[1717783432947,1.6254556,163.51,163.27,39.69]
[1717783433353,1.6254556,163.51,163.28,20.0]
[1717783433515,2.2637,163.45,163.28,20.0]
[1717783433718,2.2639,163.43,163.26,2.94275615]
[1717783433945,4.5261,163.5,163.26,2.94275615]
[1717783434133,1.6254556,163.51,163.26,2.94275615]
[1717783434320,2.2631,163.49,163.26,2.94275615]
[1717783434519,7.05724385,163.49,163.27,0.88822697]
[1717783434738,20.0,163.48,163.27,0.88779175]
[1717783434938,1.6254556,163.51,163.27,0.88779175]
[1717783435318,1.6254556,163.51,163.26,2.94275615]
[1717783435319,2.263,163.5,163.26,2.94275615]
[1717783435531,4.5263,163.49,163.26,2.94275615]
[1717783435738,126.7903,163.47,163.26,2.94275615]
[1717783435957,13.5841,163.43,163.26,2.94275615]
[1717783436161,120.0,163.43,163.24,2.94275615]
[1717783436457,120.0,163.43,163.09,39.69]
[1717783436458,7.05724385,163.35,163.15,2.94275615]
[1717783436760,2.2668,163.22,163.09,2.94275615]
[1717783436923,120.0,163.26,163.0,39.69]
[1717783437246,120.0,163.22,162.93,2.94275615]
[1717783437424,120.0,163.22,162.88,15.9259]
[1717783437425,4.5354,163.16,162.88,9.58651361]
[1717783437749,2.2693,163.04,162.88,9.58651361]
[1717783438057,2.2693,163.04,162.72,18.57]
[1717783438058,2.2704,162.97,162.75,27.2006561]
[1717783438222,10.0,163.08,162.76,6.113]
[1717783438425,120.0,163.11,162.76,6.113]
[1717783438426,10.0,163.09,162.76,6.113]
[1717783438641,30.36964948,163.11,162.84,39.69]
[1717783438838,9.0642,163.28,162.93,39.69]
[1717783439036,4.5322,163.28,162.93,39.69]
[1717783439356,2.267,163.21,162.93,39.69]
[1717783439646,120.0,163.19,162.85,24.542777]
[1717783439867,2.2701,162.99,162.79,6.113]
[1717783440155,13.28744004,163.12,162.79,6.113]
[1717783440324,2.2701,162.99,162.79,6.113]
[1717783440530,13.28744004,163.12,162.79,6.113]
[1717783440531,120.0,163.04,162.79,6.113]
[1717783440740,20.0,163.03,162.79,6.113]
[1717783440941,9.0805,162.99,162.7,7.73681403]
[1717783441126,9.0839,162.93,162.71,6.113]
[1717783441333,2.2718,162.87,162.71,6.113]
[1717783441625,2.87640602,162.93,162.71,6.113]
[1717783441824,133.28744004,163.12,162.72,0.53739977]
[1717783442143,13.28744004,163.12,162.84,39.69]
[1717783442520,5.41994004,163.14,162.93,39.69]
[1717783442847,29.96169004,163.24,162.94,20.0]
[1717783443053,23.17994004,163.3,163.03,6.1932]
[1717783443223,10.0,163.43,163.03,6.1932]
[1717783443224,2.2649,163.36,163.04,28.26618595]
[1717783443556,2.2645,163.39,163.11,39.69]
[1717783443727,3.49394004,163.43,163.12,20.0]
[1717783444056,3.49394004,163.43,163.13,0.80040822]
[1717783444346,2.2641,163.42,163.13,0.80040822]
[1717783444548,3.49394004,163.43,163.13,0.80040822]
[1717783444926,2.2643,163.41,163.13,0.80040822]
[1717783445125,3.49394004,163.43,163.12,20.80040822]
[1717783445429,11.3213,163.41,163.09,15.6408]
[1717783445631,120.0,163.38,163.04,0.80080096]
[1717783445831,2.2666,163.24,162.94,16.0004]
[1717783446050,3.52365377,163.23,162.95,0.59993103]
[1717783446247,3.52365377,163.23,162.94,16.0004]
[1717783446420,20.0,163.28,162.94,16.0004]
[1717783446623,3.52365377,163.27,162.94,34.5704]
[1717783446837,5.90882697,163.28,163.02,39.69]
[1717783447056,10.0,163.32,163.02,39.69]
[1717783447264,10.0,163.26,163.02,39.69]
[1717783447544,7.04730754,163.31,163.03,0.62073246]
[1717783447744,30.90721037,163.4,163.03,39.19073246]
[1717783447960,30.90721037,163.4,163.03,30.62073246]
[1717783447961,2.2656,163.31,163.03,30.62073246]
[1717783448120,4.5289,163.4,163.06,10.0]
[1717783448121,2.2654,163.33,163.06,10.0]
[1717783448421,3.52365377,163.37,163.07,20.62058019]
[1717783448625,3.52365377,163.37,163.08,0.62368795]
[1717783448864,2.2653,163.33,163.08,10.62368795]
[1717783449153,2.2661,163.27,163.09,20.0]
[1717783449327,27.76069004,163.31,163.09,20.0]
[1717783449650,27.76069004,163.31,163.06,10.0]
[1717783449856,6.7978,163.29,163.06,10.0]
[1717783450057,2.2671,163.21,163.06,10.0]
[1717783450262,147.76069004,163.31,163.06,10.0]
[1717783450263,120.0,163.26,163.06,10.0]
[1717783450430,120.0,163.21,163.06,10.0]
[1717783450636,4.5352,163.17,163.01,10.0]
[1717783450843,9.0709,163.16,162.83,39.69]
[1717783451048,20.415,163.12,162.83,45.803]
[1717783451228,4.5365,163.12,162.83,45.803]
[1717783451427,3.33631627,163.11,162.88,10.0]
[1717783451652,3.33631627,163.11,162.86,10.0]
[1717783451830,120.0,163.08,162.83,16.113]
[1717783452028,4.54,163.0,162.83,16.113]
[1717783452245,4.54,163.0,162.83,6.113]
[1717783452246,3.33631627,162.99,162.83,6.113]
[1717783452458,2.2709,162.93,162.76,10.0]
[1717783452758,10.14681627,162.99,162.66,9.0775]
[1717783452759,20.0,162.96,162.66,9.0775]
[1717783453057,120.0,163.06,162.66,9.0775]
[1717783453058,124.5388,163.04,162.69,11.42187781]
[1717783453355,8.77019602,163.02,162.69,11.42187781]
[1717783453650,20.0,163.01,162.69,11.42187781]
[1717783453828,20.0,163.01,162.8,10.0]
[1717783454036,9.24036269,163.08,162.78,10.0]
[1717783454233,13.04385634,163.0,162.85,10.0]
[1717783454444,6.2495,163.26,162.81,10.0]
[1717783454445,120.0,163.03,162.81,10.0]
[1717783454750,4.5397,163.01,162.71,10.0]
[1717783454954,4.5399,163.0,162.69,11.42187781]
[1717783455257,6.8085,163.03,162.69,11.42187781]
[1717783455258,126.8085,163.03,162.69,11.42187781]
[1717783455443,120.0,163.01,162.7,10.0]
[1717783455638,2.2718,162.87,162.7,10.0]
[1717783455839,120.0,162.93,162.7,10.0]
[1717783456041,3.71577183,162.86,162.7,10.0]
[1717783456249,120.0,162.85,162.69,1.42187781]
[1717783456549,2.2727,162.8,162.69,1.42187781]
[1717783456753,5.52459086,162.79,162.69,1.42187781]
[1717783457255,5.52459086,162.79,162.69,11.42187781]
[1717783457446,5.52459086,162.79,162.69,1.42187781]
[1717783457955,4.5463,162.77,162.69,1.42187781]
[1717783458140,2.2741,162.7,162.69,1.42187781]
[1717783458545,5.98987183,162.7,162.69,1.42187781]
[1717783458850,5.98987183,162.7,162.69,7.781e-05]
[1717783458851,41.66617183,162.7,162.69,7.781e-05]
[1717783459052,6.8248,162.64,162.63,0.3370297]
[1717783459242,22.2749,162.64,162.63,0.3370297]
[1717783459448,20.0,162.64,162.63,0.3370297]
[1717783459655,20.0,162.64,162.63,6.6661297]
[1717783459957,2.2715,162.89,162.7,10.0]
[1717783460145,2.2715,162.89,162.65,10.0]
[1717783460334,23.29444004,162.9,162.72,10.0]
[1717783460535,23.29444004,162.9,162.65,10.0]
[1717783460743,2.2726,162.81,162.65,10.0]
[1717783460949,39.19404004,162.9,162.65,10.0]
[1717783460950,120.0,162.87,162.65,10.0]
[1717783461151,120.0,162.81,162.65,10.0]
[1717783461353,30.66807083,162.83,162.63,1.1004732]
[1717783461534,120.0,162.77,162.63,1.1004732]
[1717783461735,6.8191,162.78,162.63,1.1004732]
[1717783461969,120.0,162.73,162.63,1.1004732]
[1717783462141,8.3581,162.64,162.63,1.1004732]
[1717783462338,8.3581,162.64,162.49,10.0]
[1717783462339,120.0,162.59,162.38,10.0]
[1717783462657,2.2777,162.45,162.29,0.3370297]
[1717783462857,6.8329,162.45,162.29,0.3370297]
[1717783463051,2.2777,162.45,162.29,0.3370297]
[1717783463364,2.2773,162.47,162.29,0.3370297]
[1717783463538,2.2777,162.44,162.29,0.3370297]
[1717783463966,144.2376,162.44,162.43,2.47e-05]
[1717783464148,2.2797,162.31,162.29,0.3370297]
[1717783464571,12.44490714,162.3,162.29,0.3370297]
[1717783464865,168.45100714,162.3,162.29,0.3370297]
[1717783465063,22.2815,162.26,162.23,1.0100247]
[1717783465241,8.5559,162.24,162.23,0.0100247]
[1717783465436,42.2815,162.24,161.99,10.0]
[1717783465643,2.2823,162.12,161.95,4.86533628]
[1717783465965,21.9484,162.11,161.95,4.86533628]
[1717783466155,13.7924,162.03,161.95,4.86533628]
[1717783466361,13.7924,162.03,161.82,1.0100247]
[1717783466362,2.2843,161.97,161.82,1.0100247]
[1717783466681,2.2843,161.97,161.79,0.7071348]
[1717783466682,6.2841,161.83,161.79,0.7071348]
[1717783466968,130.8535,161.95,161.79,0.7071348]
[1717783467271,120.0,161.88,161.79,0.7071348]
[1717783467565,22.9233,161.82,161.79,0.7071348]
[1717783467748,6.6426,161.8,161.79,0.7071348]
[1717783467940,6.6426,161.8,161.63,0.3370297]
[1717783467941,26.6426,161.8,161.63,0.3370297]
[1717783468145,2.2884,161.69,161.63,0.3370297]
[1717783468363,20.0,161.79,161.63,0.3370297]
[1717783468570,120.0,161.77,161.63,0.3370297]
[1717783468742,37.02,161.89,161.69,2.2883]
[1717783469081,37.02,161.95,161.7,10.0]
[1717783469294,1.22733278,161.99,161.7,10.0]
[1717783469568,48.89769004,162.14,161.67,39.69]
[1717783469756,120.0,162.01,161.8,10.0]
[1717783469955,15.482,162.27,161.84,10.0]
[1717783469956,120.0,162.12,161.84,10.0]
[1717783470145,1.22733278,162.11,161.88,2.2856]
[1717783470350,1.22733278,162.12,161.93,2.2848]
[1717783470698,120.0,162.21,161.84,10.0]
[1717783470967,4.5645,162.12,161.84,10.0]
[1717783471151,1.22733278,162.11,161.8,10.0]
[1717783471346,120.0,162.07,161.83,2.2863]
[1717783471656,6.4161,162.02,161.76,10.0]
[1717783471871,6.4161,162.02,161.65,6.5746]
[1717783471872,4.38618689,162.03,161.65,46.2646]
[1717783472051,2.2844,161.97,161.65,46.2646]
[1717783472247,120.0,162.03,161.65,6.5746]
[1717783472580,120.0,161.98,161.65,6.5746]
[1717783472751,4.5688,161.97,161.65,6.5746]
[1717783472950,120.0,161.95,161.63,0.3370297]
[1717783473263,4.5713,161.88,161.63,0.3370297]
[1717783473466,6.5668,161.68,161.38,10.0]
[1717783473667,2.2914,161.47,161.45,0.43856968]
[1717783473974,2.2914,161.48,161.27,2.2942]
[1717783474147,39.69,161.66,161.0,73.89]
[1717783474148,2.2918,161.44,161.0,73.89]
[1717783474349,3.67145206,161.43,161.22,10.0]
[1717783474547,3.67145206,161.43,161.14,26.3591318]
[1717783474548,6.0484,161.3,161.14,1.5944588]
[1717783474749,2.2959,161.15,161.14,0.5944588]
[1717783474969,6.8842,161.24,161.14,0.5944588]
[1717783474970,16.063,161.24,161.14,0.5944588]
[1717783475152,2.2959,161.16,161.14,0.5944588]
[1717783475353,159.69,161.25,161.14,0.5944588]
[1717783475554,16.43034478,161.15,161.14,0.12313984]
[1717783476059,30.37004478,161.15,161.14,0.12313984]
[1717783476379,126.0241,161.01,161.0,23.33863057]
[1717783476599,21.4396661,161.14,160.82,1.5944588]
[1717783476600,120.0,160.99,160.82,1.5944588]
[1717783476899,22.2597,160.98,160.87,1.27241845]
[1717783477046,0.3370297,160.93,160.82,0.80234167]
[1717783477245,20.0,160.93,160.82,0.80234167]
[1717783477557,6.0047,160.88,160.63,0.3255492]
[1717783477771,30.0,160.84,160.63,0.3255492]
[1717783477982,20.0,160.83,160.63,0.3255492]
[1717783478147,4.6015,160.82,160.63,0.3255492]
[1717783478347,20.0,160.83,160.65,65.79682857]
[1717783478564,120.0,160.84,160.65,64.65912857]
[1717783478787,123.22556827,160.82,160.65,64.65912857]
[1717783478991,120.0,160.73,160.65,34.35912857]
[1717783479146,36.1105,160.72,160.63,0.3255492]
[1717783479502,30.0,160.71,160.63,0.0481052]
[1717783479644,150.0,160.71,160.63,0.0481052]
[1717783479849,150.0,160.71,160.56,0.04357955]
[1717783479850,37.02,160.69,160.56,0.04357955]
[1717783480061,144.0782,160.57,160.56,0.04357955]
[1717783480293,144.0782,160.57,160.56,7.955e-05]
[1717783480448,24.0791,160.51,160.32,10.0]
[1717783480756,24.0791,160.51,160.5,1.74358702]
[1717783480757,2.3051,160.51,160.5,1.74358702]
[1717783480954,120.0,160.5,160.32,10.0]
[1717783481153,120.0,160.5,160.41,10.0]
[1717783481359,142.4463,160.5,160.37,10.0]
[1717783481568,142.4463,160.5,160.32,10.0]
[1717783481976,120.0,160.5,160.32,10.0]
[1717783482183,120.0,160.59,160.34,10.0]
[1717783482383,120.0,160.5,160.32,10.0]
[1717783482677,142.5256,160.5,160.32,10.0]
[1717783482877,22.6125,160.5,160.32,10.0]
[1717783483177,120.0,160.6,160.32,10.0]
[1717783483360,6.6275,160.59,160.32,10.0]
[1717783483564,142.8193,160.5,160.32,10.0]
[1717783483778,142.8193,160.33,160.32,10.0]
[1717783483956,142.8193,160.33,160.18,0.4815588]
[1717783483957,120.431953,160.3,160.18,0.4815588]
[1717783484170,0.62655521,160.25,160.18,0.4815588]
[1717783484355,1.4553,160.28,159.99,10.0]
[1717783484559,40.09,160.19,159.71,31.50489376]
[1717783484764,40.09,160.06,160.0,58.41114318]
[1717783485059,31.59172245,159.95,159.57,10.0]
[1717783485261,5.36580681,159.94,159.38,7.89342034]
[1717783485460,40.5,159.51,159.38,49.69621136]
[1717783485658,29.22352868,159.51,159.38,45.69621136]
[1717783485891,5.232,159.61,159.38,45.69621136]
[1717783485892,30.0,159.46,159.38,45.69621136]
[1717783486092,9.33218144,159.56,159.38,43.19621136]
[1717783486256,4.50568144,159.56,159.38,40.19621136]
[1717783486580,120.0,159.75,159.33,4.5]
[1717783486581,31.33155228,159.6,159.33,4.5]
[1717783486771,40.5,159.58,159.33,4.5]
[1717783486972,10.0,160.0,159.33,4.5]
[1717783486973,15.76,159.43,159.33,4.5]
[1717783487172,8.64,159.43,159.33,4.88788732]
[1717783487492,6.1892,159.39,159.11,7.89342034]
[1717783487782,22.78,159.43,159.07,7.89342034]
[1717783487991,7.0,159.83,158.96,0.3255492]
[1717783487992,30.0,159.36,159.02,6.89342034]